fUSD/lending_fUSD_20260217
["ID","MTS","AMOUNT","RATE_DAILY","PERIOD"]
[405789208,1771311042072,-4242.0,0.0001137,2]
[405789209,1771311042083,-446.0,0.0001137,2]
[405789210,1771311042093,-500.0,0.0001137,2]
[405789211,1771311042103,-500.0,0.0001137,2]
[405789212,1771311042114,-4609.0,0.00011389,2]
[405789213,1771311042125,-500.0,0.00011424,2]
[405789214,1771311042136,-498.26652801,0.00011424,2]
[405789215,1771311042146,-596.0,0.00011424,2]
[405789216,1771311042156,-500.0,0.00011424,2]
[405789217,1771311042166,-872.0,0.00011424,2]
[405789218,1771311042176,-4242.0,0.00011424,2]
[405789219,1771311042186,-446.0,0.00011424,2]
[405789220,1771311042196,-500.0,0.00011424,2]
[405789221,1771311042207,-611.76249723,0.00011479,2]
[405789222,1771311042217,-596.0,0.00011479,2]
[405789223,1771311042227,-500.0,0.00011479,2]
[405789224,1771311042238,-872.0,0.00011479,2]
[405789225,1771311042248,-4242.0,0.00011479,2]
[405789226,1771311042257,-446.0,0.00011479,2]
[405789227,1771311042267,-500.0,0.00011479,2]
[405789228,1771311042277,-152.72,0.00011507,2]
[405789229,1771311042287,-1000.0,0.00011521,2]
[405789230,1771311042297,-1000.0,0.00011521,2]
[405789231,1771311042311,-1000.0,0.00011521,2]
[405789232,1771311042321,-596.0,0.00011534,2]
[405789233,1771311042331,-500.0,0.00011534,2]
[405789234,1771311042341,-872.0,0.00011534,2]
[405789235,1771311042351,-4242.0,0.00011534,2]
[405789236,1771311042360,-446.0,0.00011534,2]
[405789237,1771311042370,-500.0,0.00011534,2]
[405789238,1771311042380,-596.0,0.00011589,2]
[405789239,1771311042389,-500.0,0.00011589,2]
[405789240,1771311042400,-872.0,0.00011589,2]
[405789241,1771311042410,-4242.0,0.00011589,2]
[405789242,1771311042420,-446.0,0.00011589,2]
[405789243,1771311042430,-500.0,0.00011589,2]
[405789244,1771311042440,-596.0,0.00011644,2]
[405789245,1771311042449,-500.0,0.00011644,2]
[405789246,1771311042460,-872.0,0.00011644,2]
[405789247,1771311042471,-4242.0,0.00011644,2]
[405789248,1771311042481,-446.0,0.00011644,2]
[405789249,1771311042492,-500.0,0.00011644,2]
[405789250,1771311042505,-596.0,0.00011698,2]
[405789251,1771311042515,-500.0,0.00011698,2]
[405789252,1771311042525,-872.0,0.00011698,2]
[405789253,1771311042536,-4242.0,0.00011698,2]
[405789254,1771311042546,-446.0,0.00011698,2]
[405789256,1771311042556,-481.0942881,0.00011698,2]
[405789257,1771311042566,-596.0,0.00011753,2]
[405789258,1771311042576,-500.0,0.00011753,2]
[405789259,1771311042586,-872.0,0.00011753,2]
[405789260,1771311042597,-4242.0,0.00011753,2]
[405789261,1771311042610,-446.0,0.00011753,2]
[405789262,1771311042619,-596.0,0.00011808,2]
[405789263,1771311042630,-500.0,0.00011808,2]
[405789264,1771311042641,-872.0,0.00011808,2]
[405789265,1771311042651,-4242.0,0.00011808,2]
[405789266,1771311042663,-446.0,0.00011808,2]
[405789267,1771311042673,-596.0,0.00011863,2]
[405789268,1771311042684,-500.0,0.00011863,2]
[405789269,1771311042694,-872.0,0.00011863,2]
[405789270,1771311042705,-4242.0,0.00011863,2]
[405789271,1771311042715,-446.0,0.00011863,2]
[405789272,1771311042726,-596.0,0.00011917,2]
[405789273,1771311042735,-500.0,0.00011917,2]
[405789274,1771311042748,-872.0,0.00011917,2]
[405789275,1771311042759,-4242.0,0.00011917,2]
[405789277,1771311042770,-446.0,0.00011917,2]
[405789278,1771311042780,-600.2655769,0.00011972,2]
[405789279,1771311042791,-512.26030593,0.00011972,2]
[405789281,1771311042802,-887.15179644,0.00011972,2]
[405789282,1771311042812,-4242.729734,0.00011972,2]
[405789283,1771311042823,-460.0,0.00011972,2]
[405789284,1771311042833,-1600.0,0.00012028,2]
[405789285,1771311042843,-1500.0,0.00012068,2]
[405789286,1771311042855,-1002.39964348,0.00012068,2]
[405789287,1771311042864,-1500.0,0.00012068,2]
[405789288,1771311042874,-11808.51754568,0.00012221,2]
[405789289,1771311042884,-3826.5506893,0.00012266,2]
[405789290,1771311042894,-152.72,0.00012329,2]
[405789291,1771311042905,-6453.0,0.00012528,2]
[405789292,1771311042915,-2000.0,0.00012616,2]
[405789293,1771311042925,-368.72151799,0.00012616,2]
[405789294,1771311042935,-1485.03346152,0.00012791,2]
[405789295,1771311042946,-992.55377071,0.00012842,2]
[405789296,1771311042956,-11808.51754568,0.00013129,2]
[405789297,1771311042966,-3826.5506893,0.00013162,2]
[405789298,1771311042976,-2500.0,0.00013164,2]
[405789299,1771311042986,-915.21,0.00013698,2]
[405789300,1771311042996,-915.21,0.00013698,2]
[405789301,1771311043007,-915.21,0.00013698,2]
[405789302,1771311043018,-915.21,0.00013698,2]
[405789303,1771311043028,-915.21,0.00013698,2]
[405789304,1771311043038,-915.21,0.00013698,2]
[405789305,1771311043048,-915.21,0.00013698,2]
[405789306,1771311043058,-915.21,0.00013698,2]
[405789307,1771311043068,-915.21,0.00013698,2]
[405789308,1771311043078,-500.0,0.00013698,2]
[405789309,1771311043088,-500.0,0.00013698,2]
[405789310,1771311043098,-500.0,0.00013698,2]
[405789311,1771311043109,-500.0,0.00013698,2]
[405789312,1771311043118,-500.0,0.00013698,2]
[405789313,1771311043128,-500.0,0.00013698,2]
[405789314,1771311043138,-500.0,0.00013698,2]
[405789315,1771311043148,-500.0,0.00013698,2]
[405789316,1771311043158,-500.0,0.00013698,2]
[405789317,1771311043168,-500.0,0.00013698,2]
[405789318,1771311043179,-500.0,0.00013698,2]
[405789319,1771311043190,-500.0,0.00013698,2]
[405789320,1771311043200,-500.0,0.00013698,2]
[405789321,1771311043211,-500.0,0.00013698,2]
[405789322,1771311043221,-500.0,0.00013698,2]
[405789323,1771311043231,-307.44205355,0.00013698,2]
[405789324,1771311043240,-500.0,0.00013698,2]
[405789325,1771311043250,-500.0,0.00013698,2]
[405789326,1771311043260,-500.0,0.00013698,2]
[405789327,1771311043270,-500.0,0.00013698,2]
[405789328,1771311043280,-500.0,0.00013698,2]
[405789329,1771311043291,-500.0,0.00013698,2]
[405789330,1771311043301,-500.0,0.00013698,2]
[405789331,1771311043311,-500.0,0.00013698,2]
[405789332,1771311043321,-500.0,0.00013698,2]
[405789333,1771311043331,-500.0,0.00013698,2]
[405789334,1771311043342,-500.0,0.00013698,2]
[405789335,1771311043352,-500.0,0.00013698,2]
[405789336,1771311043363,-500.0,0.00013698,2]
[405789337,1771311043373,-500.0,0.00013698,2]
[405789338,1771311043383,-500.0,0.00013698,2]
[405789339,1771311043393,-500.0,0.00013698,2]
[405789340,1771311043403,-500.0,0.00013698,2]
[405789341,1771311043413,-500.0,0.00013698,2]
[405789342,1771311043423,-500.0,0.00013698,2]
[405789343,1771311043434,-500.0,0.00013698,2]
[405789344,1771311043444,-500.0,0.00013698,2]
[405789345,1771311043454,-500.0,0.00013698,2]
[405789346,1771311043464,-500.0,0.00013698,2]
[405789347,1771311043474,-500.0,0.00013698,2]
[405789348,1771311043484,-500.0,0.00013698,2]
[405789349,1771311043494,-500.0,0.00013698,2]
[405789350,1771311043504,-500.0,0.00013698,2]
[405789351,1771311043515,-500.0,0.00013698,2]
[405789352,1771311043525,-500.0,0.00013698,2]
[405789353,1771311043535,-500.0,0.00013698,2]
[405789354,1771311043545,-500.0,0.00013698,2]
[405789355,1771311043555,-500.0,0.00013698,2]
[405789356,1771311043565,-500.0,0.00013698,2]
[405789357,1771311043575,-500.0,0.00013698,2]
[405789358,1771311043585,-500.0,0.00013698,2]
[405789359,1771311043595,-500.0,0.00013698,2]
[405789360,1771311043605,-500.0,0.00013698,2]
[405789361,1771311043615,-500.0,0.00013698,2]
[405789362,1771311043625,-161.76553767,0.00013698,2]
[405789363,1771311043634,-503.24510855,0.00013698,2]
[405789364,1771311043658,-500.0,0.00013698,2]
[405789365,1771311043671,-500.0,0.00013698,2]
[405789368,1771311043682,-500.0,0.00013698,2]
[405789369,1771311043693,-500.0,0.00013698,2]
[405789372,1771311043704,-500.0,0.00013698,2]
[405789374,1771311043714,-500.0,0.00013698,2]
[405789376,1771311043724,-500.0,0.00013698,2]
[405789377,1771311043735,-500.0,0.00013698,2]
[405789378,1771311043747,-500.0,0.00013698,2]
[405789379,1771311043758,-154.45149982,0.00013698,2]
[405789380,1771311043769,-500.0,0.00013698,2]
[405789381,1771311043780,-500.0,0.00013698,2]
[405789382,1771311043791,-500.0,0.00013698,2]
[405789383,1771311043802,-205.75338066,0.00013698,2]
[405789384,1771311043813,-679.08,0.00013698,2]
[405789385,1771311043825,-679.08,0.00013698,2]
[405789386,1771311043836,-679.08,0.00013698,2]
[405789387,1771311043846,-679.08,0.00013698,2]
[405789388,1771311043857,-679.08,0.00013698,2]
[405789389,1771311043867,-679.08,0.00013698,2]
[405789390,1771311043878,-679.08,0.00013698,2]
[405789391,1771311043888,-679.08,0.00013698,2]
[405789392,1771311043899,-679.08,0.00013698,2]
[405789393,1771311043909,-679.08,0.00013698,2]
[405789394,1771311043919,-679.08,0.00013698,2]
[405789395,1771311043929,-679.08,0.00013698,2]
[405789396,1771311043939,-679.08,0.00013698,2]
[405789397,1771311043950,-679.08,0.00013698,2]
[405789398,1771311043961,-679.08,0.00013698,2]
[405789399,1771311043971,-679.08,0.00013698,2]
[405789400,1771311043981,-679.08,0.00013698,2]
[405789401,1771311043992,-500.0,0.00013698,2]
[405789402,1771311044008,-500.0,0.00013698,2]
[405789403,1771311044020,-400.27334963,0.00013698,2]
[405789404,1771311044031,-500.0,0.00013698,2]
[405789405,1771311044042,-500.0,0.00013698,2]
[405789406,1771311044053,-500.0,0.00013698,2]
[405789407,1771311044064,-500.0,0.00013698,2]
[405789408,1771311044074,-500.0,0.00013698,2]
[405789409,1771311044085,-500.0,0.00013698,2]
[405789410,1771311044095,-500.0,0.00013698,2]
[405789411,1771311044106,-500.0,0.00013698,2]
[405789412,1771311044117,-500.0,0.00013698,2]
[405789413,1771311044128,-500.0,0.00013698,2]
[405789414,1771311044139,-500.0,0.00013698,2]
[405789415,1771311044150,-500.0,0.00013698,2]
[405789416,1771311044160,-500.0,0.00013698,2]
[405789417,1771311044171,-500.0,0.00013698,2]
[405789418,1771311044182,-500.0,0.00013698,2]
[405789419,1771311044192,-500.0,0.00013698,2]
[405789420,1771311044202,-500.0,0.00013698,2]
[405789421,1771311044213,-500.0,0.00013698,2]
[405789422,1771311044224,-500.0,0.00013698,2]
[405789423,1771311044235,-500.0,0.00013698,2]
[405789424,1771311044246,-500.0,0.00013698,2]
[405789425,1771311044257,-500.0,0.00013698,2]
[405789426,1771311044268,-500.0,0.00013698,2]
[405789427,1771311044279,-500.0,0.00013698,2]
[405789428,1771311044291,-500.0,0.00013698,2]
[405789429,1771311044301,-500.0,0.00013698,2]
[405789430,1771311044312,-500.0,0.00013698,2]
[405789431,1771311044323,-500.0,0.00013698,2]
[405789432,1771311044333,-500.0,0.00013698,2]
[405789433,1771311044344,-500.0,0.00013698,2]
[405789434,1771311044360,-500.0,0.00013698,2]
[405789435,1771311044371,-500.0,0.00013698,2]
[405789436,1771311044383,-500.0,0.00013698,2]
[405789437,1771311044394,-500.0,0.00013698,2]
[405789438,1771311044405,-500.0,0.00013698,2]
[405789439,1771311044416,-500.0,0.00013698,2]
[405789440,1771311044427,-500.0,0.00013698,2]
[405789441,1771311044438,-500.0,0.00013698,2]
[405789442,1771311044450,-500.0,0.00013698,2]
[405789443,1771311044461,-522.2154278,0.00013698,2]
[405789444,1771311044473,-500.0,0.00013698,2]
[405789445,1771311044483,-500.0,0.00013698,2]
[405789446,1771311044656,-500.0,0.00013698,2]
[405789447,1771311044666,-500.0,0.00013698,2]
[405789448,1771311044680,-500.0,0.00013698,2]
[405789449,1771311044689,-500.0,0.00013698,2]
[405789450,1771311044699,-500.0,0.00013698,2]
[405789451,1771311044708,-500.0,0.00013698,2]
[405789452,1771311044718,-500.0,0.00013698,2]
[405789453,1771311044728,-500.0,0.00013698,2]
[405789454,1771311044737,-500.0,0.00013698,2]
[405789455,1771311044747,-500.0,0.00013698,2]
[405789456,1771311044759,-500.0,0.00013698,2]
[405789457,1771311044769,-500.0,0.00013698,2]
[405789458,1771311044779,-500.0,0.00013698,2]
[405789459,1771311044789,-500.0,0.00013698,2]
[405789460,1771311044799,-1125.16,0.00013698,2]
[405789461,1771311044809,-1125.16,0.00013698,2]
[405789462,1771311044819,-1125.16,0.00013698,2]
[405789463,1771311044830,-1125.16,0.00013698,2]
[405789464,1771311044839,-1125.16,0.00013698,2]
[405789465,1771311044849,-1125.16,0.00013698,2]
[405789466,1771311044859,-1125.16,0.00013698,2]
[405789467,1771311044869,-1125.16,0.00013698,2]
[405789468,1771311044879,-1125.16,0.00013698,2]
[405789469,1771311044888,-1125.16,0.00013698,2]
[405789470,1771311044901,-1125.16,0.00013698,2]
[405789471,1771311044910,-1125.16,0.00013698,2]
[405789472,1771311044919,-1125.16,0.00013698,2]
[405789473,1771311044929,-1125.16,0.00013698,2]
[405789474,1771311044939,-1125.16,0.00013698,2]
[405789475,1771311044948,-1125.16,0.00013698,2]
[405789476,1771311044957,-1125.16,0.00013698,2]
[405789477,1771311044967,-456.05800986,0.00013698,2]
[405789478,1771311044977,-500.0,0.00013698,2]
[405789479,1771311044987,-500.0,0.00013698,2]
[405789480,1771311044997,-500.0,0.00013698,2]
[405789481,1771311045014,-500.0,0.00013698,2]
[405789482,1771311045024,-500.0,0.00013698,2]
[405789483,1771311045034,-500.0,0.00013698,2]
[405789484,1771311045047,-500.0,0.00013698,2]
[405789485,1771311045057,-500.0,0.00013698,2]
[405789486,1771311045067,-500.0,0.00013698,2]
[405789487,1771311045076,-500.0,0.00013698,2]
[405789488,1771311045086,-430.55674509,0.00013698,2]
[405789489,1771311045095,-500.0,0.00013698,2]
[405789490,1771311045105,-500.0,0.00013698,2]
[405789491,1771311045115,-500.0,0.00013698,2]
[405789492,1771311045125,-500.0,0.00013698,2]
[405789493,1771311045135,-500.0,0.00013698,2]
[405789494,1771311045145,-500.0,0.00013698,2]
[405789495,1771311045155,-500.0,0.00013698,2]
[405789496,1771311045164,-500.0,0.00013698,2]
[405789497,1771311045173,-500.0,0.00013698,2]
[405789498,1771311045183,-500.0,0.00013698,2]
[405789499,1771311045193,-500.0,0.00013698,2]
[405789500,1771311045203,-500.0,0.00013698,2]
[405789501,1771311045213,-500.0,0.00013698,2]
[405789502,1771311045223,-500.0,0.00013698,2]
[405789503,1771311045233,-500.0,0.00013698,2]
[405789504,1771311045247,-506.79858148,0.00013698,2]
[405789505,1771311045257,-500.0,0.00013698,2]
[405789506,1771311045267,-500.0,0.00013698,2]
[405789507,1771311045277,-500.0,0.00013698,2]
[405789508,1771311045287,-535.55684817,0.00013698,2]
[405789509,1771311045297,-500.0,0.00013698,2]
[405789510,1771311045307,-500.0,0.00013698,2]
[405789511,1771311045317,-500.0,0.00013698,2]
[405789512,1771311045327,-639.90682726,0.00013698,2]
[405789513,1771311045337,-500.0,0.00013698,2]
[405789514,1771311045347,-500.0,0.00013698,2]
[405789515,1771311045358,-500.0,0.00013698,2]
[405789516,1771311045367,-500.0,0.00013698,2]
[405789517,1771311045377,-500.0,0.00013698,2]
[405789518,1771311045387,-500.0,0.00013698,2]
[405789519,1771311045397,-500.0,0.00013698,2]
[405789520,1771311045407,-500.0,0.00013698,2]
[405789521,1771311045417,-500.0,0.00013698,2]
[405789522,1771311045428,-500.0,0.00013698,2]
[405789523,1771311045439,-500.0,0.00013698,2]
[405789524,1771311045448,-500.0,0.00013698,2]
[405789525,1771311045458,-500.0,0.00013698,2]
[405789526,1771311045467,-500.0,0.00013698,2]
[405789527,1771311045477,-500.0,0.00013698,2]
[405789528,1771311045487,-500.0,0.00013698,2]
[405789529,1771311045507,-236.89,0.00013698,2]
[405789530,1771311045517,-349.69131006,0.00013698,2]
[405789531,1771311045528,-500.0,0.00013698,2]
[405789532,1771311045539,-529.40507312,0.00013698,2]
[405789533,1771311045549,-500.0,0.00013698,2]
[405789534,1771311045559,-500.0,0.00013698,2]
[405789535,1771311045568,-500.0,0.00013698,2]
[405789536,1771311045578,-500.0,0.00013698,2]
[405789537,1771311045587,-511.5660924,0.00013698,2]
[405789538,1771311045597,-183.74,0.00013699,2]
[405789539,1771311045607,-151.02878078,0.00013699,2]
[405789540,1771311045618,-22024.54,0.000137,2]
[405789541,1771311045629,-22024.54,0.000137,2]
[405789542,1771311045639,-846.3153877,0.00013712,2]
[405789543,1771311045648,-9035.0,0.00013781,2]
[405789544,1771311045658,-11808.51754568,0.00014036,2]
[405789545,1771311045669,-3826.5506893,0.00014059,2]
[405789546,1771311045679,-500.0,0.00014082,2]
[405789547,1771311045689,-442.0,0.00014219,2]
[405789548,1771311045699,-173498.0,0.000143,2]
[405789549,1771311045710,-538.27974596,0.00014389,2]
[405789550,1771311045720,-286.9609652,0.00014389,2]
[405789551,1771311045730,-679.08,0.00014389,2]
[405789552,1771311045739,-500.0,0.00014389,2]
[405789553,1771311045752,-500.0,0.00014389,2]
[405789554,1771311045762,-1125.16,0.00014389,2]
[405789555,1771311045772,-500.0,0.00014415,2]
[405789556,1771311045781,-500.0,0.00014415,2]
[405789557,1771311045791,-222.0,0.00014415,2]
[405789558,1771311045801,-28698.0,0.00014553,2]
[405789559,1771311045811,-5530.0,0.000146,3]
[405789560,1771311045822,-151.0,0.00014634,2]
[405789561,1771311045831,-151.0,0.00014634,2]
[405789562,1771311045854,-151.0,0.00014634,2]
[405789563,1771311045866,-300.0,0.00014904,2]
[405789564,1771311045877,-915.21,0.00014916,2]
[405789565,1771311045887,-500.0,0.00014916,2]
[405789566,1771311045897,-505.24249427,0.00014916,2]
[405789567,1771311045907,-11808.51754568,0.00014944,2]
[405789568,1771311045918,-3826.5506893,0.00014955,2]
[405789569,1771311045928,-166.66,0.00014964,2]
[405789570,1771311045938,-250.0,0.00015,2]
[405789571,1771311045948,-5530.0,0.00015,5]
[405789572,1771311045958,-265.0,0.00015041,2]
[405789573,1771311045969,-4714.510236,0.00015096,7]
[405789574,1771311045979,-21356.952753,0.00015096,7]
[405789575,1771311045990,-1226.0,0.00015159,2]
[405789577,1771311046001,-500.0,0.00015237,2]
[405789578,1771311046011,-233.0,0.00015237,2]
[405789579,1771311046020,-160.0,0.00015356,2]
[405789580,1771311046030,-173.57638878,0.00015356,2]
[405789581,1771311046040,-166.66,0.00015458,2]
[405789582,1771311046051,-500.0,0.00015515,2]
[405789583,1771311046061,-500.0,0.00015515,2]
[405789584,1771311046071,-586.96513288,0.00015515,2]
[405789585,1771311046081,-200.0,0.00015726,2]
[405789586,1771311046091,-550.98049433,0.00015845,7]
[405789587,1771311046101,-3826.5506893,0.00015852,2]
[405789588,1771311046111,-11808.51754568,0.00015852,2]
[405789589,1771311046121,-177.0,0.00015863,2]
[405789590,1771311046131,-166.66,0.00015952,2]
[405789591,1771311046141,-5000.0,0.0001596,2]
[405789592,1771311046151,-303.26122484,0.00016,2]
[405789593,1771311046161,-679.08,0.00016049,2]
[405789594,1771311046171,-500.0,0.00016049,2]
[405789595,1771311046182,-197.6651859,0.00016049,2]
[405789596,1771311046197,-1125.16,0.00016049,2]
[405789597,1771311046207,-489.0,0.00016059,2]
[405789598,1771311046217,-2000.0,0.00016082,2]
[405789599,1771311046227,-7910.59,0.00016116,2]
[405789600,1771311046237,-315.90732778,0.00016151,2]
[405789601,1771311046247,-915.21,0.00016199,2]
[405789602,1771311046258,-915.21,0.00016199,2]
[405789603,1771311046268,-915.21,0.00016199,2]
[405789604,1771311046278,-915.21,0.00016199,2]
[405789605,1771311046288,-915.2263384,0.00016199,2]
[405789606,1771311046298,-679.08,0.00016199,2]
[405789607,1771311046308,-679.08,0.00016199,2]
[405789608,1771311046318,-679.08,0.00016199,2]
[405789609,1771311046328,-679.08,0.00016199,2]
[405789610,1771311046338,-679.22619195,0.00016199,2]
[405789611,1771311046347,-500.0,0.00016199,2]
[405789612,1771311046357,-500.0,0.00016199,2]
[405789613,1771311046367,-500.0,0.00016199,2]
[405789614,1771311046378,-500.0,0.00016199,2]
[405789615,1771311046388,-388.47570654,0.00016199,2]
[405789616,1771311046398,-508.20125622,0.00016199,2]
[405789617,1771311046408,-1125.16,0.00016199,2]
[405789618,1771311046418,-1125.16,0.00016199,2]
[405789619,1771311046430,-1125.16,0.00016199,2]
[405789620,1771311046441,-1125.16,0.00016199,2]
[405789621,1771311046451,-1125.29508189,0.00016199,2]
[405789622,1771311046462,-500.0,0.00016356,2]
[405789623,1771311046472,-500.0,0.00016356,2]
[405789624,1771311046482,-241.70774661,0.00016407,2]
[405789625,1771311046493,-166.66,0.00016446,2]
[405789626,1771311046503,-9917.64356668,0.00016495,2]
[405789627,1771311046513,-166.66,0.0001694,2]
[405789628,1771311046523,-306.51422453,0.00016976,2]
[405789629,1771311046534,-300.0,0.00017,2]
[405789630,1771311046545,-160.0,0.00017,7]
[405789631,1771311046555,-502.0,0.00017,2]
[405789632,1771311046571,-820.0,0.000171,2]
[405789633,1771311046581,-350.0,0.00017306,2]
[405789634,1771311046592,-350.0,0.00017364,2]
[405789635,1771311046602,-166.66,0.00017434,2]
[405789636,1771311046613,-2000.0,0.00017452,7]
[405789637,1771311046624,-350.0,0.00017492,2]
[405789638,1771311046635,-3701.0,0.000175,2]
[405789639,1771311046645,-350.0,0.00017578,2]
[405789640,1771311046656,-5016.38407619,0.0001764,2]
[405789641,1771311046666,-502.0,0.00017716,2]
[405789642,1771311046677,-500.0,0.00017726,7]
[405789643,1771311046687,-444.64,0.00017808,2]
[405789644,1771311046698,-250.0,0.00017808,20]
[405789645,1771311046710,-250.0,0.00017808,20]
[405789646,1771311046720,-250.0,0.00017808,20]
[405789647,1771311046731,-250.0,0.00017808,20]
[405789648,1771311046743,-250.0,0.00017808,20]
[405789649,1771311046757,-250.0,0.00017808,20]
[405789650,1771311046768,-250.0,0.00017808,20]
[405789651,1771311046779,-250.0,0.00017808,20]
[405789652,1771311046790,-250.0,0.00017808,20]
[405789653,1771311046801,-250.0,0.00017808,20]
[405789654,1771311046811,-250.0,0.00017808,20]
[405789655,1771311046822,-250.0,0.00017808,20]
[405789656,1771311046832,-250.0,0.00017808,20]
[405789657,1771311046843,-250.0,0.00017808,20]
[405789658,1771311046853,-250.0,0.00017808,20]
[405789659,1771311046863,-211.316222,0.00017808,20]
[405789660,1771311046874,-800.0,0.00017808,2]
[405789661,1771311046884,-1059.62131,0.0001782,2]
[405789662,1771311046894,-1059.62132,0.0001782,2]
[405789663,1771311046903,-350.0,0.00017832,2]
[405789664,1771311046914,-200.0,0.00017855,2]
[405789665,1771311046928,-103706.5745578,0.00017856,2]
[405789666,1771311046938,-7749.8090628,0.00017856,2]
[405789667,1771311046948,-200.0,0.00017856,2]
[405789668,1771311046959,-200.0,0.00017856,2]
[405789669,1771311046969,-200.0,0.00017899,5]
[405789670,1771311046979,-201.77822118,0.00017899,5]
[405789671,1771311046990,-578.20924308,0.00017899,5]
[405789672,1771311047000,-599.60298507,0.00017899,5]
[405789673,1771311047010,-621.78829552,0.00017899,5]
[405789674,1771311047020,-415.5066665,0.00017899,5]
[405789675,1771311047031,-3000.0,0.00017899,5]
[405789676,1771311047041,-250.0,0.00017899,5]
[405789677,1771311047051,-250.0,0.00017899,5]
[405789678,1771311047062,-3000.0,0.00017899,5]
[405789679,1771311047072,-250.0,0.00017899,5]
[405789680,1771311047082,-250.0,0.00017899,5]
[405789681,1771311047092,-1421.82630279,0.00017899,5]
[405789682,1771311047102,-1070.81608438,0.00017899,5]
[405789683,1771311047116,-209.40437684,0.00017899,5]
[405789684,1771311047126,-253.83621088,0.00017899,5]
[405789685,1771311047136,-254.77802588,0.00017899,5]
[405789686,1771311047147,-1000.0,0.00017899,5]
[405789687,1771311047157,-151.0,0.00017899,5]
[405789688,1771311047168,-217.15233878,0.00017899,5]
[405789689,1771311047178,-1000.0,0.00017899,5]
[405789690,1771311047188,-151.0,0.00017899,5]
[405789691,1771311047198,-297.18074641,0.00017899,5]
[405789692,1771311047208,-526.36214318,0.00017899,5]
[405789693,1771311047218,-151.0,0.00017899,5]
[405789694,1771311047228,-151.0,0.00017899,5]
[405789695,1771311047238,-151.0,0.00017899,5]
[405789696,1771311047248,-151.0,0.00017899,5]
[405789697,1771311047258,-151.0,0.00017899,5]
[405789698,1771311047268,-151.0,0.00017899,5]
[405789699,1771311047278,-151.0,0.00017899,5]
[405789700,1771311047289,-500.0,0.00017899,5]
[405789701,1771311047299,-151.0,0.00017899,5]
[405789702,1771311047313,-151.0,0.00017899,5]
[405789703,1771311047323,-151.0,0.00017899,5]
[405789704,1771311047333,-151.0,0.00017899,5]
[405789705,1771311047343,-151.12957794,0.00017899,5]
[405789706,1771311047353,-151.0,0.00017899,5]
[405789707,1771311047363,-151.0,0.00017899,5]
[405789708,1771311047374,-151.0,0.00017899,5]
[405789709,1771311047384,-151.0,0.00017899,5]
[405789710,1771311047393,-151.0,0.00017899,5]
[405789711,1771311047403,-151.0,0.00017899,5]
[405789712,1771311047414,-151.0,0.00017899,5]
[405789713,1771311047424,-267.05598539,0.00017899,5]
[405789714,1771311047434,-151.0,0.00017899,5]
[405789715,1771311047444,-151.0,0.00017899,5]
[405789716,1771311047454,-151.0,0.00017899,5]
[405789717,1771311047465,-151.0,0.00017899,5]